[Event "Live Chess"]
[Site "Chess.com"]
[Date "2023.05.21"]
[Round "-"]
[White "Mugzwang"]
[Black "HoarseyHorsey"]
[Result "1-0"]
[WhiteElo "1448"]
[BlackElo "1455"]
[TimeControl "300"]
[EndTime "8:28:33 PDT"]
[Termination "Mugzwang won by resignation"]

1. Nf3 {[%clk 0:04:52.5]} 1... d5 {[%clk 0:04:58.7]} 2. c4 {[%clk 0:04:51]} 2...
dxc4 {[%clk 0:04:55.8]} 3. e3 {[%clk 0:04:50]} 3... Nc6 {[%clk 0:04:54.4]} 4.
Bxc4 {[%clk 0:04:47]} 4... Bg4 {[%clk 0:04:52.3]} 5. Qb3 {[%clk 0:04:33.6]} 5...
e6 {[%clk 0:04:42]} 6. Qxb7 {[%clk 0:04:18.4]} 6... Bxf3 {[%clk 0:04:32.5]} 7.
gxf3 {[%clk 0:04:16.2]} 7... Nge7 {[%clk 0:04:31.6]} 8. Bb5 {[%clk 0:04:11.3]}
8... Rb8 {[%clk 0:04:23.7]} 9. Bxc6+ {[%clk 0:04:09.4]} 9... Nxc6 {[%clk
0:04:23]} 10. Qxc6+ {[%clk 0:04:07.9]} 10... Qd7 {[%clk 0:04:22]} 11. Qxd7+
{[%clk 0:04:06.4]} 11... Kxd7 {[%clk 0:04:21.9]} 12. b3 {[%clk 0:04:04.2]} 12...
Bb4 {[%clk 0:04:14.8]} 13. Bb2 {[%clk 0:04:01.3]} 13... f6 {[%clk 0:04:13.1]}
14. Bc3 {[%clk 0:03:57.7]} 14... Bd6 {[%clk 0:04:11.8]} 15. O-O {[%clk
0:03:50.4]} 15... Ke7 {[%clk 0:04:02.1]} 16. d4 {[%clk 0:03:47.6]} 16... Rbc8
{[%clk 0:03:53.1]} 17. Nd2 {[%clk 0:03:45]} 17... c5 {[%clk 0:03:52.2]} 18. dxc5
{[%clk 0:03:32.4]} 18... Rxc5 {[%clk 0:03:49.4]} 19. Rac1 {[%clk 0:03:26.3]}
19... Rhc8 {[%clk 0:03:45.2]} 20. Ne4 {[%clk 0:03:22.3]} 20... R5c6 {[%clk
0:03:29.7]} 21. Nxd6 {[%clk 0:03:17.5]} 21... Kxd6 {[%clk 0:03:29.6]} 22. Bb4+
{[%clk 0:03:14]} 22... Kd7 {[%clk 0:03:28.9]} 23. Rfd1+ {[%clk 0:03:09.6]} 23...
Ke8 {[%clk 0:03:27.5]} 24. Rxc6 {[%clk 0:03:03.6]} 24... Rxc6 {[%clk 0:03:27.4]}
25. Kg2 {[%clk 0:02:50.4]} 25... a6 {[%clk 0:03:20.9]} 26. Ba3 {[%clk 0:02:47]}
26... Rc2 {[%clk 0:03:13]} 27. Rd6 {[%clk 0:02:35.4]} 27... Rxa2 {[%clk
0:03:05.4]} 28. Rxa6 {[%clk 0:02:33.9]} 28... Kf7 {[%clk 0:03:03.3]} 29. Ra7+
{[%clk 0:02:30.3]} 29... Kg6 {[%clk 0:03:02.2]} 30. Bc5 {[%clk 0:02:28.6]} 30...
Rc2 {[%clk 0:02:58.7]} 31. b4 {[%clk 0:02:26.9]} 31... h5 {[%clk 0:02:57.5]} 32.
Bf8 {[%clk 0:02:22.7]} 32... Rb2 {[%clk 0:02:53.9]} 33. Rxg7+ {[%clk 0:02:20.8]}
33... Kf5 {[%clk 0:02:53.6]} 34. Rh7 {[%clk 0:02:16.9]} 34... Rxb4 {[%clk
0:02:50.6]} 35. Bxb4 {[%clk 0:02:14.8]} 1-0

[Event "Live Chess"]
[Site "Chess.com"]
[Date "2023.05.21"]
[Round "-"]
[White "grillage"]
[Black "Shepherds_Pie"]
[Result "1-0"]
[WhiteElo "1785"]
[BlackElo "1926"]
[TimeControl "300"]
[EndTime "8:28:40 PDT"]
[Termination "grillage won by checkmate"]

1. d4 {[%clk 0:04:58.8]} 1... Nf6 {[%clk 0:04:56.8]} 2. Nc3 {[%clk 0:04:55.5]}
2... e6 {[%clk 0:04:54.9]} 3. Bf4 {[%clk 0:04:52]} 3... c5 {[%clk 0:04:53.3]} 4.
d5 {[%clk 0:04:48.6]} 4... d6 {[%clk 0:04:50.8]} 5. e4 {[%clk 0:04:46.2]} 5...
exd5 {[%clk 0:04:47.9]} 6. exd5 {[%clk 0:04:42.1]} 6... Be7 {[%clk 0:04:46]} 7.
Nf3 {[%clk 0:04:39.8]} 7... O-O {[%clk 0:04:44.6]} 8. Be2 {[%clk 0:04:37.2]}
8... Re8 {[%clk 0:04:43.5]} 9. O-O {[%clk 0:04:35.7]} 9... h6 {[%clk 0:04:41.2]}
10. Nd2 {[%clk 0:04:30]} 10... a6 {[%clk 0:04:38.8]} 11. a4 {[%clk 0:04:29.1]}
11... Bf8 {[%clk 0:04:36]} 12. Re1 {[%clk 0:04:27]} 12... Nbd7 {[%clk
0:04:33.7]} 13. Nc4 {[%clk 0:04:24.4]} 13... Nb6 {[%clk 0:04:29.2]} 14. a5
{[%clk 0:04:08.7]} 14... Nxc4 {[%clk 0:04:26.1]} 15. Bxc4 {[%clk 0:04:07.7]}
15... Bf5 {[%clk 0:04:23]} 16. Qd2 {[%clk 0:03:58.8]} 16... Qd7 {[%clk
0:04:21.1]} 17. Na4 {[%clk 0:03:39.1]} 17... Rxe1+ {[%clk 0:04:18.1]} 18. Qxe1
{[%clk 0:03:35.3]} 18... Re8 {[%clk 0:04:16.8]} 19. Qd1 {[%clk 0:03:28.2]} 19...
Qd8 {[%clk 0:04:07.5]} 20. Nb6 {[%clk 0:03:27.1]} 20... g5 {[%clk 0:03:59.3]}
21. Bg3 {[%clk 0:03:16.4]} 21... Bg7 {[%clk 0:03:57.5]} 22. c3 {[%clk
0:03:11.4]} 22... Ne4 {[%clk 0:03:51.1]} 23. Qf3 {[%clk 0:03:01.4]} 23... Bg6
{[%clk 0:03:47.7]} 24. h4 {[%clk 0:02:48.2]} 24... Nd2 {[%clk 0:03:45.8]} 25.
Qg4 {[%clk 0:02:39.5]} 25... f5 {[%clk 0:03:37]} 26. Qd1 {[%clk 0:02:37.2]}
26... Nxc4 {[%clk 0:03:33.6]} 27. Nxc4 {[%clk 0:02:34.3]} 27... f4 {[%clk
0:03:32.3]} 28. Bh2 {[%clk 0:02:32]} 28... Qf6 {[%clk 0:03:28.6]} 29. hxg5
{[%clk 0:02:29.3]} 29... hxg5 {[%clk 0:03:27.1]} 30. f3 {[%clk 0:02:22.5]} 30...
Bf5 {[%clk 0:03:25.1]} 31. Kh1 {[%clk 0:02:16.5]} 31... Kf7 {[%clk 0:03:20.8]}
32. Qb3 {[%clk 0:02:05.1]} 32... Qe7 {[%clk 0:03:12.4]} 33. Qb6 {[%clk
0:01:59.6]} 33... Be5 {[%clk 0:03:05.9]} 34. Re1 {[%clk 0:01:44.5]} 34... Rh8
{[%clk 0:02:58.3]} 35. Kg1 {[%clk 0:01:43]} 35... Bc8 {[%clk 0:02:47.9]} 36. g3
{[%clk 0:01:26.2]} 36... g4 {[%clk 0:02:37.4]} 37. gxf4 {[%clk 0:01:20.7]} 37...
Rxh2 {[%clk 0:02:35.9]} 38. fxe5 {[%clk 0:01:10.9]} 38... Rh1+ {[%clk
0:02:26.5]} 39. Kxh1 {[%clk 0:01:02.7]} 39... Qh4+ {[%clk 0:02:25.1]} 40. Kg2
{[%clk 0:01:00.3]} 40... Qh3+ {[%clk 0:02:18.3]} 41. Kf2 {[%clk 0:00:59.5]}
41... Qxf3+ {[%clk 0:02:14.1]} 42. Kg1 {[%clk 0:00:58.2]} 42... Qg3+ {[%clk
0:02:06.8]} 43. Kf1 {[%clk 0:00:54.6]} 43... Qf3+ {[%clk 0:01:41.1]} 44. Kg1
{[%clk 0:00:52.6]} 44... Qg3+ {[%clk 0:01:35.9]} 45. Kf1 {[%clk 0:00:51.4]}
45... Qd3+ {[%clk 0:01:24.5]} 46. Kg1 {[%clk 0:00:45.6]} 46... Qxc4 {[%clk
0:01:23.1]} 47. Qc7+ {[%clk 0:00:44.2]} 47... Kg6 {[%clk 0:01:18.9]} 48. Qxc8
{[%clk 0:00:40.3]} 48... dxe5 {[%clk 0:01:14.9]} 49. Qe6+ {[%clk 0:00:36.2]}
49... Kg7 {[%clk 0:01:12.2]} 50. Qxe5+ {[%clk 0:00:35.1]} 50... Kg6 {[%clk
0:01:10.9]} 51. Qe6+ {[%clk 0:00:28.9]} 51... Kg5 {[%clk 0:01:09.4]} 52. Re5+
{[%clk 0:00:26.5]} 52... Kh4 {[%clk 0:01:08.1]} 53. Qh6+ {[%clk 0:00:20.6]}
53... Kg3 {[%clk 0:01:06.5]} 54. Re3# {[%clk 0:00:19.8]} 1-0

[Event "Live Chess"]
[Site "Chess.com"]
[Date "2023.05.21"]
[Round "-"]
[White "ShanthamGrarks"]
[Black "LaupMiths"]
[Result "0-1"]
[WhiteElo "1927"]
[BlackElo "1827"]
[TimeControl "300"]
[EndTime "8:28:45 PDT"]
[Termination "LaupMiths won by checkmate"]

1. d4 {[%clk 0:04:56.8]} 1... d5 {[%clk 0:04:56]} 2. Nc3 {[%clk 0:04:52.7]} 2...
Bf5 {[%clk 0:04:49.7]} 3. e4 {[%clk 0:04:51.3]} 3... dxe4 {[%clk 0:04:48.1]} 4.
f3 {[%clk 0:04:51]} 4... Nf6 {[%clk 0:04:46.1]} 5. fxe4 {[%clk 0:04:49.5]} 5...
Bxe4 {[%clk 0:04:43.9]} 6. Nxe4 {[%clk 0:04:47.4]} 6... Nxe4 {[%clk 0:04:43.8]}
7. Be3 {[%clk 0:04:44.3]} 7... e6 {[%clk 0:04:40.3]} 8. Qf3 {[%clk 0:04:40.7]}
8... Qd5 {[%clk 0:04:34.5]} 9. Bd3 {[%clk 0:04:33.9]} 9... Nf6 {[%clk
0:04:32.8]} 10. Qg3 {[%clk 0:04:28.8]} 10... Nc6 {[%clk 0:04:27.1]} 11. Nf3
{[%clk 0:04:17.5]} 11... O-O-O {[%clk 0:04:22.5]} 12. O-O-O {[%clk 0:04:14.2]}
12... Qxa2 {[%clk 0:04:20.1]} 13. c3 {[%clk 0:04:11.4]} 13... Ba3 {[%clk
0:04:09.4]} 14. bxa3 {[%clk 0:04:08.1]} 14... Na5 {[%clk 0:04:08.2]} 15. Bc2
{[%clk 0:04:00.4]} 15... Ne4 {[%clk 0:04:01.7]} 16. Qe5 {[%clk 0:03:32.8]} 16...
Qxa3+ {[%clk 0:03:55.1]} 17. Kb1 {[%clk 0:03:29.6]} 17... Nxc3# {[%clk
0:03:53.1]} 0-1

[Event "Live Chess"]
[Site "Chess.com"]
[Date "2023.05.21"]
[Round "-"]
[White "garyjc"]
[Black "McSlash1"]
[Result "0-1"]
[WhiteElo "1080"]
[BlackElo "1973"]
[TimeControl "300"]
[EndTime "8:28:47 PDT"]
[Termination "McSlash1 won by resignation"]

1. e4 {[%clk 0:04:54]} 1... c5 {[%clk 0:04:59.3]} 2. Nc3 {[%clk 0:04:52.1]} 2...
Nc6 {[%clk 0:04:57.1]} 3. f4 {[%clk 0:04:50.8]} 3... g6 {[%clk 0:04:55.8]} 4.
Bc4 {[%clk 0:04:48.9]} 4... Bg7 {[%clk 0:04:55.2]} 5. Nf3 {[%clk 0:04:46.3]}
5... e6 {[%clk 0:04:54.8]} 6. d3 {[%clk 0:04:44.6]} 6... Nge7 {[%clk 0:04:54.3]}
7. a4 {[%clk 0:04:39.4]} 7... O-O {[%clk 0:04:53.9]} 8. O-O {[%clk 0:04:37.4]}
8... d5 {[%clk 0:04:53.4]} 9. exd5 {[%clk 0:04:33.1]} 9... exd5 {[%clk
0:04:53.3]} 10. Ba2 {[%clk 0:04:26.9]} 10... Bg4 {[%clk 0:04:52.6]} 11. Qe1
{[%clk 0:04:19.9]} 11... Re8 {[%clk 0:04:51]} 12. Qf2 {[%clk 0:04:01.1]} 12...
Bxf3 {[%clk 0:04:47.3]} 13. Qxf3 {[%clk 0:03:57.6]} 13... Nd4 {[%clk 0:04:44.1]}
14. Qf2 {[%clk 0:03:52.7]} 14... Nef5 {[%clk 0:04:41.3]} 15. Nb5 {[%clk
0:03:45.6]} 15... Nxb5 {[%clk 0:04:38.6]} 16. axb5 {[%clk 0:03:43.8]} 16... Bd4
{[%clk 0:04:38.2]} 17. Be3 {[%clk 0:03:37.3]} 17... Bxe3 {[%clk 0:04:37.2]} 18.
Qxe3 {[%clk 0:03:34]} 18... Rxe3 {[%clk 0:04:37.1]} 0-1

[Event "Live Chess"]
[Site "Chess.com"]
[Date "2023.05.21"]
[Round "-"]
[White "tpm07"]
[Black "1600x"]
[Result "0-1"]
[WhiteElo "1950"]
[BlackElo "1937"]
[TimeControl "300"]
[EndTime "8:28:54 PDT"]
[Termination "1600x won by resignation"]

1. e4 {[%clk 0:04:57.9]} 1... e5 {[%clk 0:04:59.7]} 2. Nf3 {[%clk 0:04:56.8]}
2... Nc6 {[%clk 0:04:58.2]} 3. Bb5 {[%clk 0:04:55.6]} 3... Nd4 {[%clk
0:04:55.9]} 4. Nxd4 {[%clk 0:04:53.9]} 4... exd4 {[%clk 0:04:55.1]} 5. O-O
{[%clk 0:04:53.4]} 5... c6 {[%clk 0:04:53.5]} 6. Bc4 {[%clk 0:04:52]} 6... Qe7
{[%clk 0:04:52.1]} 7. d3 {[%clk 0:04:50.6]} 7... h6 {[%clk 0:04:50.7]} 8. f4
{[%clk 0:04:49.8]} 8... b5 {[%clk 0:04:49.4]} 9. Bb3 {[%clk 0:04:48.5]} 9... Nf6
{[%clk 0:04:47.5]} 10. Nd2 {[%clk 0:04:46.3]} 10... d5 {[%clk 0:04:24.3]} 11.
exd5 {[%clk 0:04:38.2]} 11... Bg4 {[%clk 0:04:22]} 12. Qe1 {[%clk 0:04:30.2]}
12... Be2 {[%clk 0:04:20.3]} 13. Rf2 {[%clk 0:04:22]} 13... Bh5 {[%clk 0:04:18]}
14. Qxe7+ {[%clk 0:04:15.2]} 14... Bxe7 {[%clk 0:04:17.9]} 15. dxc6 {[%clk
0:04:13.5]} 15... Ng4 {[%clk 0:04:16.3]} 16. Rf1 {[%clk 0:04:05.3]} 16... Ne3
{[%clk 0:04:14.8]} 17. Re1 {[%clk 0:04:04.4]} 17... Rc8 {[%clk 0:04:13.3]} 18.
Ne4 {[%clk 0:03:56.5]} 18... Rxc6 {[%clk 0:04:04.6]} 19. Bxe3 {[%clk 0:03:54.8]}
19... dxe3 {[%clk 0:04:03.4]} 20. Rxe3 {[%clk 0:03:54.4]} 20... O-O {[%clk
0:04:01.8]} 21. Kh1 {[%clk 0:03:45.6]} 21... Bg6 {[%clk 0:04:00]} 22. Nc3 {[%clk
0:03:42.5]} 22... Bf6 {[%clk 0:03:55.2]} 23. Nxb5 {[%clk 0:03:30.7]} 23... Bxb2
{[%clk 0:03:51.8]} 24. Rae1 {[%clk 0:03:29.8]} 24... a6 {[%clk 0:03:50.2]} 25.
Na7 {[%clk 0:03:21.7]} 25... Rf6 {[%clk 0:03:48.8]} 26. g3 {[%clk 0:03:15.7]}
26... Bc3 {[%clk 0:03:47.2]} 27. R1e2 {[%clk 0:03:08.7]} 27... Bh5 {[%clk
0:03:41.3]} 28. Rg2 {[%clk 0:02:56.1]} 28... Bd4 {[%clk 0:03:32.1]} 29. Re4
{[%clk 0:02:50.8]} 29... Bxa7 {[%clk 0:03:30]} 30. Rd2 {[%clk 0:02:31]} 30...
Bf3+ {[%clk 0:03:28.5]} 0-1

[Event "Live Chess"]
[Site "Chess.com"]
[Date "2023.05.21"]
[Round "-"]
[White "PiotrD11"]
[Black "Ferrarifan27"]
[Result "0-1"]
[WhiteElo "1376"]
[BlackElo "2053"]
[TimeControl "300"]
[EndTime "8:29:00 PDT"]
[Termination "Ferrarifan27 won by checkmate"]

1. e4 {[%clk 0:04:57.9]} 1... e5 {[%clk 0:04:59.1]} 2. Nc3 {[%clk 0:04:57.2]}
2... Nc6 {[%clk 0:04:58.6]} 3. Nf3 {[%clk 0:04:56.6]} 3... Bc5 {[%clk
0:04:57.5]} 4. Bb5 {[%clk 0:04:55.9]} 4... d6 {[%clk 0:04:55.4]} 5. h3 {[%clk
0:04:54]} 5... Bd7 {[%clk 0:04:54.3]} 6. O-O {[%clk 0:04:52.9]} 6... Nf6 {[%clk
0:04:53.5]} 7. Re1 {[%clk 0:04:50.7]} 7... O-O {[%clk 0:04:51.2]} 8. d3 {[%clk
0:04:49.9]} 8... a6 {[%clk 0:04:50.5]} 9. Ba4 {[%clk 0:04:48.6]} 9... Qe7 {[%clk
0:04:48.2]} 10. Nd5 {[%clk 0:04:25.2]} 10... Nxd5 {[%clk 0:04:46.5]} 11. exd5
{[%clk 0:04:25.1]} 11... Nd4 {[%clk 0:04:42.3]} 12. Bxd7 {[%clk 0:04:17.6]}
12... Qxd7 {[%clk 0:04:42.2]} 13. Nxd4 {[%clk 0:04:15]} 13... Bxd4 {[%clk
0:04:40.8]} 14. c3 {[%clk 0:04:13.6]} 14... Bb6 {[%clk 0:04:39]} 15. a4 {[%clk
0:04:09.7]} 15... f5 {[%clk 0:04:29]} 16. a5 {[%clk 0:04:06.5]} 16... Ba7 {[%clk
0:04:26.8]} 17. Be3 {[%clk 0:04:06.1]} 17... Bxe3 {[%clk 0:04:23.6]} 18. Rxe3
{[%clk 0:04:03.9]} 18... f4 {[%clk 0:04:22.7]} 19. Re4 {[%clk 0:03:58.4]} 19...
Qf7 {[%clk 0:04:18.9]} 20. Qg4 {[%clk 0:03:50.3]} 20... Qxd5 {[%clk 0:04:14.9]}
21. Qf3 {[%clk 0:03:41.2]} 21... Qf7 {[%clk 0:04:11.3]} 22. Rae1 {[%clk
0:03:36.7]} 22... c6 {[%clk 0:04:10.3]} 23. d4 {[%clk 0:03:35.5]} 23... exd4
{[%clk 0:04:07.7]} 24. Re7 {[%clk 0:03:26.8]} 24... Qf6 {[%clk 0:04:04.4]} 25.
Rxb7 {[%clk 0:03:21.2]} 25... dxc3 {[%clk 0:04:01.9]} 26. bxc3 {[%clk
0:03:20.3]} 26... Rae8 {[%clk 0:03:18.5]} 27. Rxe8 {[%clk 0:03:14.6]} 27... Rxe8
{[%clk 0:03:18.4]} 28. Qxc6 {[%clk 0:03:12.9]} 28... Re1+ {[%clk 0:03:09.2]} 29.
Kh2 {[%clk 0:03:12.4]} 29... h5 {[%clk 0:03:02.2]} 30. Qd5+ {[%clk 0:03:10.1]}
30... Qe6 {[%clk 0:02:51.8]} 31. Rb8+ {[%clk 0:03:01.6]} 31... Kf7 {[%clk
0:02:47.9]} 32. Qxh5+ {[%clk 0:02:59.5]} 32... Ke7 {[%clk 0:02:43.2]} 33. Qe8+
{[%clk 0:02:56.7]} 33... Kf6 {[%clk 0:02:40.9]} 34. Qxe6+ {[%clk 0:02:50]} 34...
Rxe6 {[%clk 0:02:39.2]} 35. Rb6 {[%clk 0:02:43.2]} 35... Re2 {[%clk 0:02:36]}
36. Rxa6 {[%clk 0:02:41.9]} 36... Ke5 {[%clk 0:02:32.3]} 37. f3 {[%clk
0:02:39.7]} 37... Rc2 {[%clk 0:02:30]} 38. Rc6 {[%clk 0:02:28.1]} 38... Kd5
{[%clk 0:02:27]} 39. Rc8 {[%clk 0:02:23.3]} 39... g5 {[%clk 0:02:23.6]} 40. Kg1
{[%clk 0:02:12.4]} 40... Ra2 {[%clk 0:02:20.7]} 41. Ra8 {[%clk 0:02:08.2]} 41...
Kc4 {[%clk 0:02:18.8]} 42. a6 {[%clk 0:02:06.8]} 42... Kxc3 {[%clk 0:02:16.5]}
43. a7 {[%clk 0:02:06.1]} 43... Kd2 {[%clk 0:02:11.6]} 44. Kf1 {[%clk
0:02:02.3]} 44... d5 {[%clk 0:02:07.1]} 45. Rd8 {[%clk 0:01:57.6]} 45... Rxa7
{[%clk 0:02:04.5]} 46. Rxd5+ {[%clk 0:01:57.1]} 46... Ke3 {[%clk 0:02:03.8]} 47.
Rxg5 {[%clk 0:01:56.4]} 47... Ra1# {[%clk 0:02:01.8]} 0-1

[Event "Live Chess"]
[Site "Chess.com"]
[Date "2023.05.21"]
[Round "-"]
[White "WilliamofOrange16th"]
[Black "siddu198"]
[Result "1-0"]
[WhiteElo "1854"]
[BlackElo "1613"]
[TimeControl "300"]
[EndTime "8:29:10 PDT"]
[Termination "WilliamofOrange16th won by resignation"]

1. e4 {[%clk 0:04:57.8]} 1... e5 {[%clk 0:04:59.3]} 2. Nf3 {[%clk 0:04:56.7]}
2... Nc6 {[%clk 0:04:58.9]} 3. Bc4 {[%clk 0:04:55.1]} 3... Bc5 {[%clk
0:04:58.1]} 4. O-O {[%clk 0:04:53.5]} 4... Nf6 {[%clk 0:04:57.7]} 5. d4 {[%clk
0:04:51.7]} 5... exd4 {[%clk 0:04:56.6]} 6. Ng5 {[%clk 0:04:43]} 6... O-O {[%clk
0:04:54.8]} 7. c3 {[%clk 0:04:40.3]} 7... dxc3 {[%clk 0:04:53.5]} 8. Nxc3 {[%clk
0:04:39.4]} 8... Ne5 {[%clk 0:04:48.8]} 9. Bb3 {[%clk 0:04:36.1]} 9... h6 {[%clk
0:04:45.4]} 10. Nf3 {[%clk 0:04:34.5]} 10... Nxf3+ {[%clk 0:04:38.5]} 11. Qxf3
{[%clk 0:04:34.4]} 11... d6 {[%clk 0:04:34.5]} 12. h3 {[%clk 0:04:32.2]} 12...
Be6 {[%clk 0:04:30.5]} 13. Nd5 {[%clk 0:04:30.7]} 13... Bxd5 {[%clk 0:04:29.2]}
14. exd5 {[%clk 0:04:29.2]} 14... Bd4 {[%clk 0:04:24.4]} 15. Rb1 {[%clk
0:04:26.6]} 15... Be5 {[%clk 0:04:23.9]} 16. Bc2 {[%clk 0:04:19.8]} 16... Qe7
{[%clk 0:04:21.3]} 17. Qd3 {[%clk 0:04:13.7]} 17... Rfe8 {[%clk 0:04:19.4]} 18.
f4 {[%clk 0:04:05.3]} 1-0

[Event "Live Chess"]
[Site "Chess.com"]
[Date "2023.05.21"]
[Round "-"]
[White "GMHarry-youtube"]
[Black "seabuck"]
[Result "0-1"]
[WhiteElo "1994"]
[BlackElo "1909"]
[TimeControl "300"]
[EndTime "8:29:12 PDT"]
[Termination "seabuck won by checkmate"]

1. e4 {[%clk 0:04:59.2]} 1... e6 {[%clk 0:04:58.9]} 2. d4 {[%clk 0:04:57.9]}
2... d5 {[%clk 0:04:58]} 3. e5 {[%clk 0:04:57.5]} 3... c5 {[%clk 0:04:56.6]} 4.
c3 {[%clk 0:04:57.4]} 4... Nc6 {[%clk 0:04:55.3]} 5. Nf3 {[%clk 0:04:57.1]} 5...
Bd7 {[%clk 0:04:54.3]} 6. Bd3 {[%clk 0:04:52.4]} 6... Rc8 {[%clk 0:04:53]} 7.
O-O {[%clk 0:04:50.7]} 7... cxd4 {[%clk 0:04:51.3]} 8. Re1 {[%clk 0:04:49]} 8...
dxc3 {[%clk 0:04:42.3]} 9. Nxc3 {[%clk 0:04:47.3]} 9... a6 {[%clk 0:04:35.6]}
10. h4 {[%clk 0:04:45.4]} 10... Nb4 {[%clk 0:04:22.5]} 11. Bb1 {[%clk
0:04:37.9]} 11... Be7 {[%clk 0:04:04.2]} 12. h5 {[%clk 0:04:35]} 12... Nh6
{[%clk 0:03:54]} 13. a3 {[%clk 0:04:28.6]} 13... Nc6 {[%clk 0:03:50.1]} 14. Bxh6
{[%clk 0:04:16.3]} 14... gxh6 {[%clk 0:03:48.1]} 15. Qd2 {[%clk 0:04:15]} 15...
Bg5 {[%clk 0:03:45]} 16. Qc2 {[%clk 0:04:12.7]} 16... Qb6 {[%clk 0:03:28.9]} 17.
b4 {[%clk 0:04:07.5]} 17... Nd4 {[%clk 0:03:18.9]} 18. Qd3 {[%clk 0:04:02.7]}
18... Nxf3+ {[%clk 0:02:52.7]} 19. Qxf3 {[%clk 0:04:00.9]} 19... Qd4 {[%clk
0:02:46.3]} 20. Ba2 {[%clk 0:03:40]} 20... Rxc3 {[%clk 0:02:29.9]} 21. Qe2
{[%clk 0:03:26.1]} 21... Bb5 {[%clk 0:02:27.9]} 22. Qb2 {[%clk 0:03:20.7]} 22...
Qd2 {[%clk 0:02:12.3]} 23. Qb1 {[%clk 0:03:06.6]} 23... Rc2 {[%clk 0:02:05.2]}
24. Kh2 {[%clk 0:02:56.3]} 24... Qxf2 {[%clk 0:01:58.6]} 25. Rg1 {[%clk
0:02:54.7]} 25... Qh4# {[%clk 0:01:53.4]} 0-1

[Event "Live Chess"]
[Site "Chess.com"]
[Date "2023.05.21"]
[Round "-"]
[White "Conradical12"]
[Black "EdenHazard8"]
[Result "0-1"]
[WhiteElo "1516"]
[BlackElo "1938"]
[TimeControl "300"]
[EndTime "8:29:13 PDT"]
[Termination "EdenHazard8 won by resignation"]

1. e4 {[%clk 0:04:58.6]} 1... c6 {[%clk 0:04:59.1]} 2. Nf3 {[%clk 0:04:57.1]}
2... d5 {[%clk 0:04:59]} 3. exd5 {[%clk 0:04:55.4]} 3... cxd5 {[%clk 0:04:58.9]}
4. d4 {[%clk 0:04:54.4]} 4... Nc6 {[%clk 0:04:58]} 5. Nc3 {[%clk 0:04:53.7]}
5... Bg4 {[%clk 0:04:56.9]} 6. Bf4 {[%clk 0:04:52.7]} 6... e6 {[%clk 0:04:55.2]}
7. Be2 {[%clk 0:04:51.9]} 7... a6 {[%clk 0:04:54]} 8. a4 {[%clk 0:04:49.1]} 8...
Bd6 {[%clk 0:04:53.1]} 9. Bg3 {[%clk 0:04:47.4]} 9... Nf6 {[%clk 0:04:50.9]} 10.
Qd3 {[%clk 0:04:44.4]} 10... Bf5 {[%clk 0:04:48.6]} 11. Qd2 {[%clk 0:04:42.4]}
11... Bb4 {[%clk 0:04:36.2]} 12. O-O-O {[%clk 0:04:39.9]} 12... Ne4 {[%clk
0:04:34.4]} 13. Qe3 {[%clk 0:04:36.6]} 13... Nxc3 {[%clk 0:04:33]} 14. bxc3
{[%clk 0:04:35]} 14... Ba3+ {[%clk 0:04:32.6]} 15. Kb1 {[%clk 0:04:33.5]} 15...
Qb6+ {[%clk 0:04:31]} 16. Bb5 {[%clk 0:04:30.1]} 16... axb5 {[%clk 0:04:30.1]}
17. Bc7 {[%clk 0:04:27.9]} 17... Qxc7 {[%clk 0:04:26.2]} 18. Ka2 {[%clk
0:04:22.8]} 18... b4 {[%clk 0:04:16.9]} 19. c4 {[%clk 0:04:20.7]} 19... dxc4
{[%clk 0:04:14.5]} 20. d5 {[%clk 0:04:19.7]} 20... Rxa4 {[%clk 0:04:04.3]} 21.
dxe6 {[%clk 0:04:16.6]} 21... O-O {[%clk 0:04:01.9]} 22. exf7+ {[%clk
0:04:08.6]} 22... Kh8 {[%clk 0:04:00.6]} 23. Qe8 {[%clk 0:04:01.6]} 23... Qxf7
{[%clk 0:03:58.3]} 24. Rd8 {[%clk 0:03:56.6]} 24... Rxe8 {[%clk 0:03:55.2]} 25.
Ng5 {[%clk 0:03:53.9]} 25... Qf8 {[%clk 0:03:51.2]} 0-1

[Event "Live Chess"]
[Site "Chess.com"]
[Date "2023.05.21"]
[Round "-"]
[White "BillythekidFellowes"]
[Black "LiamClery2020"]
[Result "1-0"]
[WhiteElo "2129"]
[BlackElo "1995"]
[TimeControl "300"]
[EndTime "8:29:19 PDT"]
[Termination "BillythekidFellowes won by resignation"]

1. e4 {[%clk 0:04:59.7]} 1... Nf6 {[%clk 0:04:59.9]} 2. Nc3 {[%clk 0:04:58.6]}
2... e5 {[%clk 0:04:58.3]} 3. Nf3 {[%clk 0:04:57]} 3... Nc6 {[%clk 0:04:57.3]}
4. Bb5 {[%clk 0:04:55.9]} 4... Bb4 {[%clk 0:04:54.1]} 5. O-O {[%clk 0:04:54.1]}
5... O-O {[%clk 0:04:50.6]} 6. Bxc6 {[%clk 0:04:52.3]} 6... dxc6 {[%clk
0:04:48.5]} 7. Nxe5 {[%clk 0:04:50.4]} 7... Bxc3 {[%clk 0:04:44]} 8. dxc3 {[%clk
0:04:49.1]} 8... Qxd1 {[%clk 0:04:42.8]} 9. Rxd1 {[%clk 0:04:48]} 9... Nxe4
{[%clk 0:04:42.7]} 10. Be3 {[%clk 0:04:47.2]} 10... Be6 {[%clk 0:04:41]} 11. f3
{[%clk 0:04:45.4]} 11... Nf6 {[%clk 0:04:39.1]} 12. Rd2 {[%clk 0:04:35.1]} 12...
Nd5 {[%clk 0:04:37]} 13. Bf2 {[%clk 0:04:34]} 13... a6 {[%clk 0:04:35.9]} 14.
Rad1 {[%clk 0:04:33]} 14... Rad8 {[%clk 0:04:24.3]} 15. c4 {[%clk 0:04:30]} 1-0

[Event "Live Chess"]
[Site "Chess.com"]
[Date "2023.05.21"]
[Round "-"]
[White "TheAuditer"]
[Black "boilerboy1"]
[Result "0-1"]
[WhiteElo "1370"]
[BlackElo "1050"]
[TimeControl "300"]
[EndTime "8:29:24 PDT"]
[Termination "boilerboy1 won by resignation"]

1. d4 {[%clk 0:04:57.3]} 1... Nf6 {[%clk 0:04:57.4]} 2. c4 {[%clk 0:04:55.2]}
2... g6 {[%clk 0:04:56.6]} 3. Nf3 {[%clk 0:04:53.5]} 3... Bg7 {[%clk 0:04:55]}
4. Nc3 {[%clk 0:04:51.7]} 4... c5 {[%clk 0:04:51.6]} 5. d5 {[%clk 0:04:48.8]}
5... O-O {[%clk 0:04:47.2]} 6. e4 {[%clk 0:04:43]} 6... d6 {[%clk 0:04:45.9]} 7.
Bd3 {[%clk 0:04:41]} 7... Nbd7 {[%clk 0:04:44]} 8. O-O {[%clk 0:04:35.9]} 8...
Ng4 {[%clk 0:04:41.1]} 9. h3 {[%clk 0:04:30]} 9... Nge5 {[%clk 0:04:39.4]} 10.
Nxe5 {[%clk 0:04:24.9]} 10... Nxe5 {[%clk 0:04:37.2]} 11. Be2 {[%clk 0:04:19.6]}
11... a6 {[%clk 0:04:33.1]} 12. f4 {[%clk 0:04:14.4]} 12... Nd7 {[%clk
0:04:24.9]} 13. Qc2 {[%clk 0:04:04.7]} 13... Bd4+ {[%clk 0:04:21.7]} 14. Kh1
{[%clk 0:04:02]} 14... Nb6 {[%clk 0:04:19.8]} 15. b3 {[%clk 0:03:58.3]} 15...
Bd7 {[%clk 0:04:11]} 16. Bf3 {[%clk 0:03:54.5]} 16... Nc8 {[%clk 0:03:59.7]} 17.
Bd2 {[%clk 0:03:51]} 17... e6 {[%clk 0:03:52]} 18. Rae1 {[%clk 0:03:43]} 18...
exd5 {[%clk 0:03:50.8]} 19. exd5 {[%clk 0:03:38.6]} 19... Ne7 {[%clk 0:03:45.7]}
20. Be3 {[%clk 0:03:31.7]} 20... Nf5 {[%clk 0:03:34.4]} 21. Bxd4 {[%clk
0:03:28.2]} 21... Nxd4 {[%clk 0:03:32.3]} 22. Bd1 {[%clk 0:03:15.9]} 22... Nxc2
{[%clk 0:03:29.8]} 0-1